fUST/lending_fUST_20250209
["ID","MTS","AMOUNT","RATE_DAILY","PERIOD"]
[352356651,1739056240439,-500.0,0.00011095,2]
[352356652,1739056240449,-845.48,0.00011095,2]
[352356653,1739056240459,-500.0,0.00011095,2]
[352356654,1739056240469,-3837.81,0.00011095,2]
[352356655,1739056240478,-500.0,0.00011095,2]
[352356656,1739056240487,-500.0,0.00011095,2]
[352356657,1739056240497,-500.0,0.00011095,2]
[352356658,1739056240506,-711.36,0.00011095,2]
[352356659,1739056240516,-6303.14,0.00011095,2]
[352356660,1739056240526,-500.0,0.00011095,2]
[352356661,1739056240536,-500.0,0.00011095,2]
[352356662,1739056240545,-1656.15,0.00011095,2]
[352356663,1739056240554,-500.0,0.00011095,2]
[352356664,1739056240564,-500.0,0.00011095,2]
[352356665,1739056240574,-604.85,0.00011095,2]
[352356666,1739056240584,-1639.92,0.00011095,2]
[352356667,1739056240593,-500.0,0.00011095,2]
[352356668,1739056240603,-500.0,0.00011095,2]
[352356669,1739056240612,-1508.75,0.00011095,2]
[352356670,1739056240621,-1349.47,0.00011095,2]
[352356671,1739056240631,-500.0,0.00011095,2]
[352356672,1739056240641,-500.0,0.00011095,2]
[352356673,1739056240650,-2412.6,0.00011095,2]
[352356674,1739056240660,-500.0,0.00011095,2]
[352356676,1739056240670,-500.0,0.00011095,2]
[352356678,1739056240680,-770.75,0.00011095,2]
[352356679,1739056240691,-511.93,0.00011095,2]
[352356680,1739056240700,-574.39,0.00011095,2]
[352356681,1739056240710,-500.0,0.00011095,2]
[352356682,1739056240719,-18627.65,0.00011095,2]
[352356683,1739056240728,-8789.06,0.00011095,2]
[352356684,1739056240739,-1895.04,0.00011095,2]
[352356685,1739056240748,-857.82,0.00011095,2]
[352356686,1739056240761,-704.64,0.00011095,2]
[352356687,1739056240771,-1049.15,0.00011095,2]
[352356688,1739056240780,-887.78,0.00011095,2]
[352356689,1739056240789,-865.22,0.00011095,2]
[352356690,1739056240799,-593.49,0.00011095,2]
[352356691,1739056240808,-500.0,0.00011095,2]
[352356692,1739056240818,-500.0,0.00011095,2]
[352356693,1739056240827,-500.0,0.00011095,2]
[352356694,1739056241048,-663.59,0.00011095,2]
[352356695,1739056241057,-500.0,0.00011095,2]
[352356696,1739056241067,-890.18,0.00011095,2]
[352356697,1739056241076,-500.0,0.00011095,2]
[352356698,1739056241086,-500.0,0.00011231,2]
[352356699,1739056241100,-500.0,0.00011231,2]
[352356700,1739056241109,-500.0,0.00011231,2]
[352356701,1739056241118,-500.0,0.00011231,2]
[352356702,1739056241127,-500.0,0.00011232,2]
[352356703,1739056241136,-500.0,0.00011232,2]
[352356704,1739056241145,-500.0,0.00011232,2]
[352356705,1739056241155,-500.0,0.00011232,2]
[352356706,1739056241164,-500.0,0.00011232,2]
[352356707,1739056241173,-634.09,0.00011232,2]
[352356708,1739056241183,-500.0,0.00011232,2]
[352356709,1739056241192,-500.0,0.00011232,2]
[352356710,1739056241201,-500.0,0.00011232,2]
[352356711,1739056241210,-516.02,0.00011232,2]
[352356712,1739056241219,-500.0,0.00011232,2]
[352356713,1739056241228,-500.0,0.00011232,2]
[352356714,1739056241237,-500.0,0.00011232,2]
[352356715,1739056241246,-500.0,0.00011232,2]
[352356716,1739056241256,-539.17,0.00011232,2]
[352356717,1739056241266,-500.0,0.00011232,2]
[352356718,1739056241275,-500.0,0.00011232,2]
[352356719,1739056241284,-500.0,0.00011232,2]
[352356720,1739056241294,-500.0,0.00011232,2]
[352356721,1739056241303,-500.0,0.00011232,2]
[352356722,1739056241312,-500.0,0.00011232,2]
[352356723,1739056241322,-583.45,0.00011232,2]
[352356724,1739056241331,-500.0,0.00011232,2]
[352356725,1739056241340,-608.22,0.00011232,2]
[352356726,1739056241349,-281.99002132,0.00011232,2]
[352356727,1739056241358,-500.0,0.00011232,2]
[352356728,1739056241367,-2293.1,0.00011232,2]
[352356729,1739056241377,-500.0,0.00011232,2]
[352356730,1739056241386,-299.67,0.00011232,2]
[352356731,1739056241395,-500.0,0.00011232,2]
[352356732,1739056241405,-645.49,0.00011232,2]
[352356733,1739056241414,-500.0,0.00011232,2]
[352356734,1739056241424,-899.91,0.00011232,2]
[352356735,1739056241433,-174.43251499,0.00011232,2]
[352356736,1739056241442,-1495.97,0.00011232,2]
[352356737,1739056241451,-500.0,0.00011232,2]
[352356738,1739056241460,-1235.39,0.00011232,2]
[352356739,1739056241469,-728.96,0.00011232,2]
[352356740,1739056241479,-500.0,0.00011232,2]
[352356741,1739056241488,-845.48,0.00011232,2]
[352356742,1739056241498,-500.0,0.00011232,2]
[352356743,1739056241507,-3837.81,0.00011232,2]
[352356744,1739056241516,-500.0,0.00011232,2]
[352356745,1739056241525,-500.0,0.00011232,2]
[352356746,1739056241535,-711.36,0.00011232,2]
[352356747,1739056241545,-6303.14,0.00011232,2]
[352356748,1739056241554,-500.0,0.00011232,2]
[352356749,1739056241563,-500.0,0.00011232,2]
[352356750,1739056241572,-1656.15,0.00011232,2]
[352356751,1739056241582,-500.0,0.00011232,2]
[352356752,1739056241591,-500.0,0.00011232,2]
[352356753,1739056241601,-604.85,0.00011232,2]
[352356754,1739056241610,-1639.92,0.00011232,2]
[352356755,1739056241619,-500.0,0.00011232,2]
[352356756,1739056241629,-500.0,0.00011232,2]
[352356757,1739056241638,-1508.75,0.00011232,2]
[352356758,1739056241647,-1349.47,0.00011232,2]
[352356759,1739056241656,-500.0,0.00011232,2]
[352356760,1739056241665,-500.0,0.00011232,2]
[352356761,1739056241674,-2412.6,0.00011232,2]
[352356762,1739056241683,-500.0,0.00011232,2]
[352356763,1739056241692,-500.0,0.00011232,2]
[352356764,1739056241701,-770.75,0.00011232,2]
[352356765,1739056241709,-511.93,0.00011232,2]
[352356766,1739056241719,-574.39,0.00011232,2]
[352356767,1739056241727,-18627.65,0.00011232,2]
[352356768,1739056241736,-8789.06,0.00011232,2]
[352356769,1739056241745,-1895.04,0.00011232,2]
[352356770,1739056241756,-857.82,0.00011232,2]
[352356771,1739056241767,-704.64,0.00011232,2]
[352356772,1739056241776,-1049.15,0.00011232,2]
[352356773,1739056241787,-887.78,0.00011232,2]
[352356774,1739056241797,-865.22,0.00011232,2]
[352356775,1739056241807,-500.0,0.00011232,2]
[352356776,1739056241817,-593.49,0.00011232,2]
[352356777,1739056241826,-663.59,0.00011232,2]
[352356778,1739056241836,-500.0,0.00011232,2]
[352356779,1739056241846,-890.18,0.00011232,2]
[352356780,1739056241856,-500.0,0.00011367,2]
[352356781,1739056241865,-384.69591863,0.00011368,2]
[352356782,1739056241874,-500.0,0.00011369,2]
[352356783,1739056241883,-634.09,0.00011369,2]
[352356784,1739056241894,-500.0,0.00011369,2]
[352356785,1739056241903,-500.0,0.00011369,2]
[352356786,1739056241912,-500.0,0.00011369,2]
[352356787,1739056241921,-516.02,0.00011369,2]
[352356788,1739056241930,-500.0,0.00011369,2]
[352356789,1739056241939,-500.0,0.00011369,2]
[352356790,1739056241949,-500.0,0.00011369,2]
[352356791,1739056241958,-500.0,0.00011369,2]
[352356792,1739056241967,-539.17,0.00011369,2]
[352356793,1739056241977,-500.0,0.00011369,2]
[352356794,1739056241986,-500.0,0.00011369,2]
[352356795,1739056241996,-500.0,0.00011369,2]
[352356796,1739056242005,-500.0,0.00011369,2]
[352356797,1739056242017,-500.0,0.00011369,2]
[352356798,1739056242033,-583.45,0.00011369,2]
[352356799,1739056242051,-500.0,0.00011369,2]
[352356800,1739056242061,-608.22,0.00011369,2]
[352356801,1739056242070,-500.0,0.00011369,2]
[352356802,1739056242081,-2293.1,0.00011369,2]
[352356803,1739056242091,-500.0,0.00011369,2]
[352356804,1739056242100,-500.0,0.00011369,2]
[352356805,1739056242111,-645.49,0.00011369,2]
[352356806,1739056242121,-500.0,0.00011369,2]
[352356807,1739056242132,-899.91,0.00011369,2]
[352356808,1739056242141,-1495.97,0.00011369,2]
[352356809,1739056242151,-500.0,0.00011369,2]
[352356810,1739056242161,-1235.39,0.00011369,2]
[352356811,1739056242173,-728.96,0.00011369,2]
[352356812,1739056242182,-225.2771228,0.00011369,2]
[352356813,1739056242191,-845.48,0.00011369,2]
[352356814,1739056242201,-3837.81,0.00011369,2]
[352356815,1739056242213,-500.0,0.00011369,2]
[352356816,1739056242228,-500.0,0.00011369,2]
[352356817,1739056242239,-711.36,0.00011369,2]
[352356818,1739056242249,-6303.14,0.00011369,2]
[352356819,1739056242258,-445.80793554,0.00011369,2]
[352356820,1739056242267,-500.0,0.00011369,2]
[352356821,1739056242276,-1656.15,0.00011369,2]
[352356822,1739056242287,-500.0,0.00011369,2]
[352356823,1739056242303,-500.0,0.00011369,2]
[352356824,1739056242313,-604.85,0.00011369,2]
[352356825,1739056242322,-1639.92,0.00011369,2]
[352356826,1739056242339,-500.0,0.00011369,2]
[352356827,1739056242350,-500.0,0.00011369,2]
[352356828,1739056242360,-1508.75,0.00011369,2]
[352356829,1739056242370,-1349.47,0.00011369,2]
[352356830,1739056242379,-500.0,0.00011369,2]
[352356831,1739056242389,-500.0,0.00011369,2]
[352356832,1739056242399,-2412.6,0.00011369,2]
[352356833,1739056242408,-446.39,0.00011369,2]
[352356834,1739056242418,-500.0,0.00011369,2]
[352356835,1739056242427,-770.75,0.00011369,2]
[352356836,1739056242439,-574.39,0.00011369,2]
[352356837,1739056242448,-511.93,0.00011369,2]
[352356838,1739056242460,-18627.65,0.00011369,2]
[352356839,1739056242470,-8789.06,0.00011369,2]
[352356840,1739056242479,-1895.04,0.00011369,2]
[352356841,1739056242489,-857.82,0.00011369,2]
[352356842,1739056242498,-704.64,0.00011369,2]
[352356843,1739056242507,-1049.15,0.00011369,2]
[352356844,1739056242516,-887.78,0.00011369,2]
[352356845,1739056242525,-500.0,0.00011369,2]
[352356846,1739056242535,-593.49,0.00011369,2]
[352356847,1739056242544,-865.22,0.00011369,2]
[352356848,1739056242554,-663.59,0.00011369,2]
[352356849,1739056242563,-890.18,0.00011369,2]
[352356850,1739056242573,-297.20096557,0.00011381,2]
[352356851,1739056242582,-187.20311775,0.00011387,2]
[352356852,1739056242591,-151.59975057,0.00011387,2]
[352356853,1739056242600,-151.64112493,0.00011387,2]
[352356854,1739056242610,-500.0,0.00011387,2]
[352356855,1739056242620,-261.26856444,0.00011387,2]
[352356856,1739056242629,-155.513,0.0001145,2]
[352356857,1739056242638,-306.0,0.000115,2]
[352356858,1739056242658,-153.0,0.000115,2]
[352356859,1739056242669,-329.524607,0.00011506,2]
[352356860,1739056242679,-329.524607,0.00011506,2]
[352356861,1739056242689,-153.501486,0.00011506,2]
[352356862,1739056242887,-153.501486,0.00011506,2]
[352356863,1739056242897,-500.0,0.00011506,2]
[352356864,1739056242907,-634.09,0.00011506,2]
[352356865,1739056242917,-500.0,0.00011506,2]
[352356866,1739056242926,-500.0,0.00011506,2]
[352356867,1739056242936,-500.0,0.00011506,2]
[352356868,1739056242945,-516.02,0.00011506,2]
[352356869,1739056242954,-500.0,0.00011506,2]
[352356870,1739056242964,-500.0,0.00011506,2]
[352356872,1739056242973,-500.0,0.00011506,2]
[352356874,1739056242982,-500.0,0.00011506,2]
[352356875,1739056242991,-539.17,0.00011506,2]
[352356876,1739056243000,-500.0,0.00011506,2]
[352356877,1739056243009,-500.0,0.00011506,2]
[352356878,1739056243018,-500.0,0.00011506,2]
[352356879,1739056243027,-500.0,0.00011506,2]
[352356880,1739056243037,-583.45,0.00011506,2]
[352356881,1739056243046,-500.0,0.00011506,2]
[352356882,1739056243055,-608.22,0.00011506,2]
[352356883,1739056243064,-500.0,0.00011506,2]
[352356884,1739056243073,-2293.1,0.00011506,2]
[352356885,1739056243082,-500.0,0.00011506,2]
[352356887,1739056243092,-500.0,0.00011506,2]
[352356889,1739056243101,-645.49,0.00011506,2]
[352356891,1739056243111,-500.0,0.00011506,2]
[352356893,1739056243120,-899.91,0.00011506,2]
[352356895,1739056243131,-1495.97,0.00011506,2]
[352356896,1739056243142,-500.0,0.00011506,2]
[352356900,1739056243152,-1235.39,0.00011506,2]
[352356903,1739056243162,-728.96,0.00011506,2]
[352356906,1739056243171,-845.48,0.00011506,2]
[352356909,1739056243180,-3837.81,0.00011506,2]
[352356911,1739056243190,-500.0,0.00011506,2]
[352356914,1739056243199,-320.21791191,0.00011506,2]
[352356917,1739056243209,-711.36,0.00011506,2]
[352356920,1739056243218,-6303.14,0.00011506,2]
[352356924,1739056243228,-500.0,0.00011506,2]
[352356926,1739056243238,-1656.15,0.00011506,2]
[352356929,1739056243247,-500.0,0.00011506,2]
[352356933,1739056243256,-500.0,0.00011506,2]
[352356936,1739056243265,-604.85,0.00011506,2]
[352356939,1739056243274,-1639.92,0.00011506,2]
[352356941,1739056243284,-500.0,0.00011506,2]
[352356943,1739056243293,-500.0,0.00011506,2]
[352356945,1739056243302,-1508.75,0.00011506,2]
[352356947,1739056243311,-1349.47,0.00011506,2]
[352356949,1739056243320,-500.0,0.00011506,2]
[352356951,1739056243329,-500.0,0.00011506,2]
[352356953,1739056243339,-2412.6,0.00011506,2]
[352356955,1739056243348,-500.0,0.00011506,2]
[352356957,1739056243357,-770.75,0.00011506,2]
[352356959,1739056243367,-574.39,0.00011506,2]
[352356961,1739056243376,-511.93,0.00011506,2]
[352356963,1739056243385,-18627.65,0.00011506,2]
[352356965,1739056243395,-8789.06,0.00011506,2]
[352356967,1739056243404,-1895.04,0.00011506,2]
[352356969,1739056243414,-857.82,0.00011506,2]
[352356971,1739056243423,-704.64,0.00011506,2]
[352356973,1739056243432,-1049.15,0.00011506,2]
[352356976,1739056243445,-887.78,0.00011506,2]
[352356978,1739056243455,-500.0,0.00011506,2]
[352356980,1739056243466,-593.49,0.00011506,2]
[352356982,1739056243475,-865.22,0.00011506,2]
[352356984,1739056243484,-663.59,0.00011506,2]
[352356986,1739056243493,-890.18,0.00011506,2]
[352356988,1739056243502,-500.0,0.00011618,2]
[352356990,1739056243512,-500.0,0.00011618,2]
[352356992,1739056243521,-500.0,0.00011635,2]
[352356994,1739056243530,-500.0,0.00011643,2]
[352356996,1739056243539,-634.09,0.00011643,2]
[352356998,1739056243549,-500.0,0.00011643,2]
[352357000,1739056243558,-500.0,0.00011643,2]
[352357002,1739056243568,-500.0,0.00011643,2]
[352357004,1739056243578,-516.02,0.00011643,2]
[352357006,1739056243587,-500.0,0.00011643,2]
[352357008,1739056243596,-500.0,0.00011643,2]
[352357010,1739056243607,-500.0,0.00011643,2]
[352357012,1739056243616,-500.0,0.00011643,2]
[352357014,1739056243626,-539.17,0.00011643,2]
[352357016,1739056243637,-500.0,0.00011643,2]
[352357018,1739056243646,-500.0,0.00011643,2]
[352357020,1739056243655,-500.0,0.00011643,2]
[352357022,1739056243665,-583.45,0.00011643,2]
[352357024,1739056243674,-500.0,0.00011643,2]
[352357026,1739056243684,-608.22,0.00011643,2]
[352357029,1739056243694,-500.0,0.00011643,2]
[352357031,1739056243704,-2293.1,0.00011643,2]
[352357033,1739056243714,-500.0,0.00011643,2]
[352357035,1739056243723,-500.0,0.00011643,2]
[352357037,1739056243733,-645.49,0.00011643,2]
[352357039,1739056243742,-500.0,0.00011643,2]
[352357041,1739056243751,-899.91,0.00011643,2]
[352357042,1739056243765,-1495.97,0.00011643,2]
[352357043,1739056243774,-500.0,0.00011643,2]
[352357044,1739056243784,-1235.39,0.00011643,2]
[352357046,1739056243793,-728.96,0.00011643,2]
[352357048,1739056243803,-845.48,0.00011643,2]
[352357050,1739056243813,-3837.81,0.00011643,2]
[352357052,1739056243822,-500.0,0.00011643,2]
[352357054,1739056243832,-711.36,0.00011643,2]
[352357056,1739056243841,-6303.14,0.00011643,2]
[352357058,1739056243851,-500.0,0.00011643,2]
[352357061,1739056243860,-1656.15,0.00011643,2]
[352357063,1739056243870,-500.0,0.00011643,2]
[352357065,1739056243879,-500.0,0.00011643,2]
[352357067,1739056243889,-604.85,0.00011643,2]
[352357069,1739056243898,-1639.92,0.00011643,2]
[352357071,1739056243908,-500.0,0.00011643,2]
[352357073,1739056243917,-500.0,0.00011643,2]
[352357075,1739056243926,-1508.75,0.00011643,2]
[352357076,1739056243935,-1349.47,0.00011643,2]
[352357079,1739056243945,-500.0,0.00011643,2]
[352357081,1739056243955,-500.0,0.00011643,2]
[352357083,1739056243965,-2412.6,0.00011643,2]
[352357085,1739056243974,-500.0,0.00011643,2]
[352357086,1739056243983,-770.75,0.00011643,2]
[352357087,1739056243992,-574.39,0.00011643,2]
[352357088,1739056244001,-511.93,0.00011643,2]
[352357089,1739056244010,-18627.65,0.00011643,2]
[352357090,1739056244019,-8789.06,0.00011643,2]
[352357091,1739056244029,-1895.04,0.00011643,2]
[352357092,1739056244038,-857.82,0.00011643,2]
[352357093,1739056244047,-704.64,0.00011643,2]
[352357094,1739056244056,-1049.15,0.00011643,2]
[352357095,1739056244066,-887.78,0.00011643,2]
[352357096,1739056244075,-500.0,0.00011643,2]
[352357097,1739056244085,-593.49,0.00011643,2]
[352357098,1739056244094,-865.22,0.00011643,2]
[352357099,1739056244104,-663.59,0.00011643,2]
[352357100,1739056244114,-890.18,0.00011643,2]
[352357101,1739056244124,-465.39322485,0.00011678,2]
[352357102,1739056244133,-504.66349108,0.00011689,2]
[352357103,1739056244143,-166.368594,0.00011725,5]
[352357104,1739056244153,-329.524607,0.0001176,2]
[352357105,1739056244163,-329.524607,0.0001176,2]
[352357106,1739056244173,-153.501486,0.0001176,2]
[352357107,1739056244183,-153.501486,0.0001176,2]
[352357108,1739056244192,-500.0,0.0001178,2]
[352357110,1739056244203,-634.09,0.0001178,2]
[352357112,1739056244213,-500.0,0.0001178,2]
[352357114,1739056244227,-500.0,0.0001178,2]
[352357116,1739056244237,-500.0,0.0001178,2]
[352357118,1739056244247,-516.02,0.0001178,2]
[352357120,1739056244257,-500.0,0.0001178,2]
[352357122,1739056244268,-475.13634672,0.0001178,2]
[352357124,1739056244278,-500.0,0.0001178,2]
[352357125,1739056244287,-601.42800505,0.0001178,2]
[352357126,1739056244296,-539.17,0.0001178,2]
[352357127,1739056244307,-500.0,0.0001178,2]
[352357128,1739056244317,-500.0,0.0001178,2]
[352357129,1739056244327,-500.0,0.0001178,2]
[352357130,1739056244338,-583.45,0.0001178,2]
[352357131,1739056244347,-500.0,0.0001178,2]
[352357132,1739056244358,-608.22,0.0001178,2]
[352357133,1739056244369,-500.0,0.0001178,2]
[352357134,1739056244380,-2293.1,0.0001178,2]
[352357135,1739056244390,-500.0,0.0001178,2]
[352357136,1739056244400,-500.0,0.0001178,2]
[352357137,1739056244410,-645.49,0.0001178,2]
[352357138,1739056244421,-500.0,0.0001178,2]
[352357139,1739056244431,-899.91,0.0001178,2]
[352357140,1739056244441,-1495.97,0.0001178,2]
[352357141,1739056244452,-500.0,0.0001178,2]
[352357142,1739056244465,-1235.39,0.0001178,2]
[352357143,1739056244482,-728.96,0.0001178,2]
[352357144,1739056244492,-845.48,0.0001178,2]
[352357145,1739056244502,-3837.81,0.0001178,2]
[352357146,1739056244514,-500.0,0.0001178,2]
[352357147,1739056244524,-711.36,0.0001178,2]
[352357148,1739056244534,-6303.14,0.0001178,2]
[352357149,1739056244545,-500.0,0.0001178,2]
[352357150,1739056244555,-1656.15,0.0001178,2]
[352357151,1739056244565,-500.0,0.0001178,2]
[352357152,1739056244575,-500.0,0.0001178,2]
[352357153,1739056244587,-604.85,0.0001178,2]
[352357154,1739056244597,-1639.92,0.0001178,2]
[352357155,1739056244607,-500.0,0.0001178,2]
[352357156,1739056244617,-500.0,0.0001178,2]
[352357157,1739056244627,-1508.75,0.0001178,2]
[352357158,1739056244637,-1349.47,0.0001178,2]
[352357159,1739056244646,-500.0,0.0001178,2]
[352357160,1739056244656,-500.0,0.0001178,2]
[352357161,1739056244665,-2412.6,0.0001178,2]
[352357162,1739056244675,-500.0,0.0001178,2]
[352357163,1739056244686,-770.75,0.0001178,2]
[352357164,1739056244695,-574.39,0.0001178,2]
[352357165,1739056244705,-511.93,0.0001178,2]
[352357166,1739056244715,-18627.65,0.0001178,2]
[352357167,1739056244728,-8789.06,0.0001178,2]
[352357168,1739056244739,-1895.04,0.0001178,2]
[352357169,1739056244749,-857.82,0.0001178,2]
[352357170,1739056244761,-704.64,0.0001178,2]
[352357171,1739056244771,-1049.15,0.0001178,2]
[352357172,1739056244782,-887.78,0.0001178,2]
[352357173,1739056244792,-500.0,0.0001178,2]
[352357174,1739056244803,-865.22,0.0001178,2]
[352357175,1739056244814,-593.49,0.0001178,2]
[352357176,1739056244824,-663.59,0.0001178,2]
[352357177,1739056244834,-890.18,0.0001178,2]
[352357178,1739056244847,-166.368594,0.00011785,5]
[352357179,1739056244857,-13020.34537488,0.00011815,2]
[352357180,1739056244868,-1000.0,0.00011892,2]
[352357181,1739056244878,-955.665,0.000119,2]
[352357182,1739056244888,-396.0,0.00011916,2]
[352357183,1739056244898,-329.524607,0.00011917,2]
[352357184,1739056244908,-329.524607,0.00011917,2]
[352357185,1739056244918,-153.501486,0.00011917,2]
[352357186,1739056244927,-153.501486,0.00011917,2]
[352357187,1739056244937,-500.0,0.00011917,2]
[352357188,1739056244947,-151.0,0.00011917,2]
[352357189,1739056244956,-2500.0,0.00011917,2]
[352357190,1739056244969,-634.09,0.00011917,2]
[352357191,1739056244978,-500.0,0.00011917,2]
[352357192,1739056244997,-500.0,0.00011917,2]
[352357193,1739056245007,-624.35209419,0.00011917,2]
[352357194,1739056245017,-516.02,0.00011917,2]
[352357195,1739056245027,-500.0,0.00011917,2]
[352357196,1739056245037,-500.0,0.00011917,2]
[352357197,1739056245047,-539.17,0.00011917,2]
[352357198,1739056245057,-500.0,0.00011917,2]
[352357199,1739056245067,-500.0,0.00011917,2]
[352357200,1739056245077,-500.0,0.00011917,2]
[352357201,1739056245087,-583.45,0.00011917,2]
[352357202,1739056245097,-500.0,0.00011917,2]
[352357203,1739056245107,-608.22,0.00011917,2]
[352357204,1739056245117,-303.82,0.00011917,2]
[352357205,1739056245127,-2293.1,0.00011917,2]
[352357206,1739056245137,-500.0,0.00011917,2]
[352357207,1739056245147,-500.0,0.00011917,2]
[352357208,1739056245157,-812.00223251,0.00011917,2]
[352357209,1739056245167,-645.49,0.00011917,2]
[352357210,1739056245178,-500.0,0.00011917,2]
[352357211,1739056245189,-899.91,0.00011917,2]
[352357212,1739056245199,-1495.97,0.00011917,2]
[352357213,1739056245209,-500.0,0.00011917,2]
[352357214,1739056245220,-1235.39,0.00011917,2]
[352357215,1739056245230,-728.96,0.00011917,2]
[352357216,1739056245239,-204.047024,0.00011917,2]
[352357217,1739056245249,-845.48,0.00011917,2]
[352357218,1739056245259,-204.047024,0.00011917,2]
[352357219,1739056245269,-3837.81,0.00011917,2]
[352357220,1739056245280,-500.0,0.00011917,2]
[352357221,1739056245290,-151.0,0.00011917,2]
[352357222,1739056245300,-711.36,0.00011917,2]
[352357223,1739056245311,-151.0,0.00011917,2]
[352357224,1739056245322,-6303.14,0.00011917,2]
[352357225,1739056245332,-500.0,0.00011917,2]
[352357226,1739056245342,-1656.15,0.00011917,2]
[352357227,1739056245352,-500.0,0.00011917,2]
[352357228,1739056245363,-500.0,0.00011917,2]
[352357229,1739056245373,-604.85,0.00011917,2]
[352357230,1739056245383,-1639.92,0.00011917,2]
[352357231,1739056245393,-500.0,0.00011917,2]
[352357232,1739056245403,-500.0,0.00011917,2]
[352357233,1739056245413,-1508.75,0.00011917,2]
[352357234,1739056245425,-1349.47,0.00011917,2]
[352357235,1739056245435,-151.0,0.00011917,2]
[352357236,1739056245444,-500.0,0.00011917,2]
[352357237,1739056245454,-500.0,0.00011917,2]
[352357238,1739056245464,-2412.6,0.00011917,2]
[352357239,1739056245476,-151.0,0.00011917,2]
[352357240,1739056245486,-500.0,0.00011917,2]
[352357241,1739056245496,-770.75,0.00011917,2]
[352357242,1739056245506,-574.39,0.00011917,2]
[352357243,1739056245515,-511.93,0.00011917,2]
[352357244,1739056245525,-18627.65,0.00011917,2]
[352357245,1739056245535,-8789.06,0.00011917,2]
[352357246,1739056245545,-1895.04,0.00011917,2]
[352357247,1739056245555,-857.82,0.00011917,2]
[352357248,1739056245564,-704.64,0.00011917,2]
[352357249,1739056245574,-1049.15,0.00011917,2]
[352357250,1739056245584,-887.78,0.00011917,2]
[352357251,1739056245595,-500.0,0.00011917,2]
[352357252,1739056245604,-865.22,0.00011917,2]
[352357253,1739056245614,-593.49,0.00011917,2]
[352357254,1739056245624,-151.0,0.00011917,2]
[352357255,1739056245634,-663.59,0.00011917,2]
[352357256,1739056245643,-151.0,0.00011917,2]
[352357257,1739056245653,-890.18,0.00011917,2]
[352357258,1739056245662,-1727.19707,0.00011933,2]
[352357259,1739056245672,-1000.0,0.00011935,2]
[352357260,1739056245681,-500.0,0.00011976,2]
[352357261,1739056245691,-586.26103756,0.00011976,2]
[352357262,1739056245700,-154.0,0.00011977,2]
[352357263,1739056245710,-152.0,0.00011977,2]
[352357264,1739056245721,-154.0,0.00011977,2]
[352357265,1739056245731,-152.0,0.00011977,2]
[352357266,1739056245740,-154.0,0.00011977,2]
[352357267,1739056245750,-152.0,0.00011977,2]
[352357268,1739056245761,-154.0,0.00011977,2]
[352357269,1739056245773,-152.0,0.00011977,2]